[Event "Live Chess"]
[Site "Chess.com"]
[Date "2010.12.31"]
[Round "-"]
[White "CPSheppard"]
[Black "hipposcottimus"]
[Result "1-0"]
[CurrentPosition "r1bqr2k/ppp4p/5npQ/n3p1B1/4P3/2P2P2/PP4PP/RN2K1R1 b Q -"]
[Timezone "UTC"]
[ECO "C23"]
[ECOUrl "https://www.chess.com/openings/Bishops-Opening-2...Nc6"]
[UTCDate "2010.12.31"]
[UTCTime "21:20:15"]
[WhiteElo "1595"]
[BlackElo "1616"]
[TimeControl "60"]
[Termination "CPSheppard won on time"]
[StartTime "21:20:15"]
[EndDate "2010.12.31"]
[EndTime "21:21:11"]
[Link "https://www.chess.com/game/live/82972505"]

1. e4 {[%clk 0:01:00]} 1... e5 {[%clk 0:01:00]} 2. Bc4 {[%clk 0:00:59.3]} 2... Nc6 {[%clk 0:00:59.7]} 3. Bxf7+ {[%clk 0:00:58.4]} 3... Kxf7 {[%clk 0:00:58.4]} 4. Qh5+ {[%clk 0:00:57.9]} 4... g6 {[%clk 0:00:56.1]} 5. Qf3+ {[%clk 0:00:57.3]} 5... Nf6 {[%clk 0:00:55.7]} 6. Qb3+ {[%clk 0:00:56.3]} 6... d5 {[%clk 0:00:49.4]} 7. c3 {[%clk 0:00:53.6]} 7... Bd6 {[%clk 0:00:45.8]} 8. f3 {[%clk 0:00:52.4]} 8... Re8 {[%clk 0:00:43.1]} 9. d3 {[%clk 0:00:50.5]} 9... Kg7 {[%clk 0:00:42.4]} 10. Qc2 {[%clk 0:00:48]} 10... Na5 {[%clk 0:00:42.1]} 11. Qd2 {[%clk 0:00:47]} 11... dxe4 {[%clk 0:00:41.7]} 12. Qh6+ {[%clk 0:00:45.7]} 12... Kh8 {[%clk 0:00:39.7]} 13. dxe4 {[%clk 0:00:44.5]} 13... Bc5 {[%clk 0:00:36.2]} 14. Bg5 {[%clk 0:00:42.5]} 14... Bxg1 {[%clk 0:00:31.6]} 15. Rxg1 {[%clk 0:00:40.5]} 1-0

[Event "Live Chess"]
[Site "Chess.com"]
[Date "2010.12.31"]
[Round "-"]
[White "Knight_Knight"]
[Black "hipposcottimus"]
[Result "0-1"]
[CurrentPosition "6k1/p4p1p/2P2p2/8/1P6/P5P1/3r2qP/R1R3K1 w - -"]
[Timezone "UTC"]
[ECO "D31"]
[ECOUrl "https://www.chess.com/openings/Queens-Gambit-Declined-Semi-Slav-Defense-Accelerated-Move-Order"]
[UTCDate "2010.12.31"]
[UTCTime "01:25:13"]
[WhiteElo "1147"]
[BlackElo "1377"]
[TimeControl "600"]
[Termination "hipposcottimus won by checkmate"]
[StartTime "01:25:13"]
[EndDate "2010.12.31"]
[EndTime "01:37:10"]
[Link "https://www.chess.com/game/live/82704007"]

1. d4 {[%clk 0:10:00]} 1... d5 {[%clk 0:10:00]} 2. c4 {[%clk 0:09:58]} 2... c6 {[%clk 0:09:59.7]} 3. Nc3 {[%clk 0:09:55.2]} 3... e6 {[%clk 0:09:55]} 4. a3 {[%clk 0:09:52.6]} 4... Nf6 {[%clk 0:09:46.2]} 5. Bg5 {[%clk 0:09:50.2]} 5... Be7 {[%clk 0:09:37.7]} 6. Bxf6 {[%clk 0:09:48.3]} 6... Bxf6 {[%clk 0:09:35.3]} 7. Nf3 {[%clk 0:09:46.2]} 7... Nd7 {[%clk 0:09:26.1]} 8. e4 {[%clk 0:09:44.2]} 8... e5 {[%clk 0:09:17.5]} 9. exd5 {[%clk 0:09:37.7]} 9... cxd5 {[%clk 0:09:00.6]} 10. Nxd5 {[%clk 0:09:35.4]} 10... O-O {[%clk 0:08:48.7]} 11. Nxf6+ {[%clk 0:09:28.6]} 11... Qxf6 {[%clk 0:08:42.2]} 12. Be2 {[%clk 0:09:23.9]} 12... e4 {[%clk 0:08:32.4]} 13. Ne5 {[%clk 0:09:01]} 13... Nxe5 {[%clk 0:08:01.4]} 14. dxe5 {[%clk 0:08:57.2]} 14... Qxe5 {[%clk 0:07:58.3]} 15. b3 {[%clk 0:08:54.6]} 15... Bf5 {[%clk 0:07:46.5]} 16. O-O {[%clk 0:08:51.4]} 16... Rad8 {[%clk 0:07:40.9]} 17. Qc1 {[%clk 0:08:41]} 17... Qf6 {[%clk 0:07:37.3]} 18. Rd1 {[%clk 0:08:37.7]} 18... Qg6 {[%clk 0:07:11.1]} 19. Qf4 {[%clk 0:08:18.5]} 19... Bh3 {[%clk 0:07:00]} 20. g3 {[%clk 0:08:12.2]} 20... Rde8 {[%clk 0:06:42.7]} 21. Qc7 {[%clk 0:08:03.8]} 21... e3 {[%clk 0:06:26.5]} 22. Qxb7 {[%clk 0:07:41.6]} 22... exf2+ {[%clk 0:06:21.1]} 23. Kxf2 {[%clk 0:07:39.7]} 23... Qc2 {[%clk 0:05:58]} 24. Qf3 {[%clk 0:07:05.2]} 24... Re6 {[%clk 0:05:21.9]} 25. Rdc1 {[%clk 0:07:00.8]} 25... Qd2 {[%clk 0:05:11.3]} 26. b4 {[%clk 0:06:53.7]} 26... Rf6 {[%clk 0:05:00.8]} 27. Qxf6 {[%clk 0:05:59.7]} 27... gxf6 {[%clk 0:04:51.9]} 28. Rd1 {[%clk 0:05:57.2]} 28... Qc2 {[%clk 0:04:43.9]} 29. Rdc1 {[%clk 0:05:55.1]} 29... Qf5+ {[%clk 0:04:39.9]} 30. Kg1 {[%clk 0:05:53.1]} 30... Qe4 {[%clk 0:04:35.3]} 31. Bf1 {[%clk 0:05:46.7]} 31... Qe3+ {[%clk 0:04:33.2]} 32. Kh1 {[%clk 0:05:42.1]} 32... Qf3+ {[%clk 0:04:31.4]} 33. Kg1 {[%clk 0:05:39.9]} 33... Bf5 {[%clk 0:04:22.1]} 34. Bg2 {[%clk 0:05:34.8]} 34... Qe3+ {[%clk 0:04:12.8]} 35. Kh1 {[%clk 0:05:30.9]} 35... Be4 {[%clk 0:03:55.7]} 36. Bxe4 {[%clk 0:05:28.4]} 36... Qxe4+ {[%clk 0:03:50.6]} 37. Kg1 {[%clk 0:05:26.3]} 37... Rd8 {[%clk 0:03:47.8]} 38. c5 {[%clk 0:04:53.4]} 38... Rd2 {[%clk 0:03:39.4]} 39. c6 {[%clk 0:04:51.8]} 39... Qg2# {[%clk 0:03:31.4]} 0-1

[Event "Live Chess"]
[Site "Chess.com"]
[Date "2010.12.31"]
[Round "-"]
[White "Knight_Knight"]
[Black "hipposcottimus"]
[Result "1-0"]
[CurrentPosition "r1bk4/1pQ4p/p3p3/1B1p4/8/8/P4P1N/2R1K3 b - -"]
[Timezone "UTC"]
[ECO "D10"]
[ECOUrl "https://www.chess.com/openings/Slav-Defense-Exchange-Variation-3...cxd5-4.Nf3"]
[UTCDate "2010.12.31"]
[UTCTime "01:16:55"]
[WhiteElo "1147"]
[BlackElo "1377"]
[TimeControl "600"]
[Termination "Knight_Knight won by checkmate"]
[StartTime "01:16:55"]
[EndDate "2010.12.31"]
[EndTime "01:23:06"]
[Link "https://www.chess.com/game/live/82702207"]

1. d4 {[%clk 0:10:00]} 1... d5 {[%clk 0:10:00]} 2. c4 {[%clk 0:09:58.2]} 2... c6 {[%clk 0:09:58.6]} 3. cxd5 {[%clk 0:09:51.3]} 3... cxd5 {[%clk 0:09:58.3]} 4. Nf3 {[%clk 0:09:46.2]} 4... Nd7 {[%clk 0:09:57.1]} 5. Nc3 {[%clk 0:09:40.7]} 5... Ngf6 {[%clk 0:09:46.3]} 6. Bg5 {[%clk 0:09:36.7]} 6... e6 {[%clk 0:09:21.2]} 7. e4 {[%clk 0:09:32]} 7... Bb4 {[%clk 0:09:07]} 8. e5 {[%clk 0:09:29.3]} 8... Qa5 {[%clk 0:08:48.8]} 9. Bxf6 {[%clk 0:09:22.9]} 9... Bxc3+ {[%clk 0:08:46.7]} 10. bxc3 {[%clk 0:09:20.9]} 10... Qxc3+ {[%clk 0:08:44.8]} 11. Nd2 {[%clk 0:09:17.8]} 11... Qxd4 {[%clk 0:08:40.2]} 12. Bxg7 {[%clk 0:09:14.9]} 12... Rg8 {[%clk 0:08:35.9]} 13. Bh6 {[%clk 0:09:06.9]} 13... Qxe5+ {[%clk 0:08:32.4]} 14. Be2 {[%clk 0:08:59.3]} 14... Rxg2 {[%clk 0:08:22.7]} 15. Nf3 {[%clk 0:08:57.2]} 15... Qe4 {[%clk 0:08:09.7]} 16. Nd2 {[%clk 0:08:50.6]} 16... Qg6 {[%clk 0:08:03.1]} 17. Be3 {[%clk 0:08:32.9]} 17... Rg1+ {[%clk 0:07:23.3]} 18. Rxg1 {[%clk 0:08:28.3]} 18... Qxg1+ {[%clk 0:07:22.9]} 19. Nf1 {[%clk 0:08:26]} 19... Qxh2 {[%clk 0:07:22.5]} 20. Nxh2 {[%clk 0:08:23.6]} 20... Nf6 {[%clk 0:07:12.5]} 21. Bb5+ {[%clk 0:08:20.8]} 21... Ke7 {[%clk 0:07:08]} 22. Bc5+ {[%clk 0:08:18.4]} 22... Kd8 {[%clk 0:07:04.6]} 23. Qf3 {[%clk 0:07:58.4]} 23... Ne4 {[%clk 0:07:00.4]} 24. Qxf7 {[%clk 0:07:51.8]} 24... Nxc5 {[%clk 0:06:55.9]} 25. Qf8+ {[%clk 0:07:48.1]} 25... Kc7 {[%clk 0:06:51.6]} 26. Qxc5+ {[%clk 0:07:46.1]} 26... Kd8 {[%clk 0:06:47.6]} 27. Rc1 {[%clk 0:07:42.8]} 27... a6 {[%clk 0:06:26.5]} 28. Qc7# {[%clk 0:07:37.2]} 1-0

[Event "Live Chess"]
[Site "Chess.com"]
[Date "2010.12.31"]
[Round "-"]
[White "hipposcottimus"]
[Black "YIYO"]
[Result "0-1"]
[CurrentPosition "6k1/5ppp/4p3/2rp4/1p6/1P2nPP1/P2R2KP/2R5 w - -"]
[Timezone "UTC"]
[ECO "C00"]
[ECOUrl "https://www.chess.com/openings/French-Defense-Franco-Sicilian-Defense"]
[UTCDate "2010.12.31"]
[UTCTime "00:31:56"]
[WhiteElo "1377"]
[BlackElo "1432"]
[TimeControl "600"]
[Termination "YIYO won by resignation"]
[StartTime "00:31:56"]
[EndDate "2010.12.31"]
[EndTime "00:43:41"]
[Link "https://www.chess.com/game/live/82692023"]

1. e4 {[%clk 0:10:00]} 1... e6 {[%clk 0:10:00]} 2. d4 {[%clk 0:09:57.3]} 2... c5 {[%clk 0:09:58.9]} 3. Bb5 {[%clk 0:09:49.3]} 3... a6 {[%clk 0:09:57.6]} 4. Ba4 {[%clk 0:09:46.3]} 4... b5 {[%clk 0:09:56.6]} 5. Bxb5 {[%clk 0:09:37.7]} 5... axb5 {[%clk 0:09:54.2]} 6. dxc5 {[%clk 0:09:36]} 6... Bxc5 {[%clk 0:09:51.4]} 7. Nf3 {[%clk 0:09:35.8]} 7... Qc7 {[%clk 0:09:47.2]} 8. e5 {[%clk 0:09:22.4]} 8... Nc6 {[%clk 0:09:45.1]} 9. Bf4 {[%clk 0:09:17.1]} 9... Nge7 {[%clk 0:09:36.6]} 10. O-O {[%clk 0:09:09.6]} 10... Ng6 {[%clk 0:09:33.1]} 11. Qd2 {[%clk 0:08:42.7]} 11... Ngxe5 {[%clk 0:09:27.7]} 12. Qc3 {[%clk 0:08:23.9]} 12... Nxf3+ {[%clk 0:09:14.5]} 13. Qxf3 {[%clk 0:08:21.3]} 13... Bd6 {[%clk 0:09:08.7]} 14. Bg3 {[%clk 0:08:14.5]} 14... Ne5 {[%clk 0:08:59.7]} 15. Qxa8 {[%clk 0:08:05.4]} 15... O-O {[%clk 0:08:56.3]} 16. Nd2 {[%clk 0:07:37.1]} 16... Bb7 {[%clk 0:08:44.6]} 17. Qa7 {[%clk 0:07:33.4]} 17... Ra8 {[%clk 0:08:42.9]} 18. Qe3 {[%clk 0:07:16.5]} 18... Ng4 {[%clk 0:08:31.7]} 19. Qd3 {[%clk 0:06:42.2]} 19... Bxg3 {[%clk 0:08:08.7]} 20. fxg3 {[%clk 0:06:40.3]} 20... Qc6 {[%clk 0:07:56.3]} 21. Nf3 {[%clk 0:06:10.6]} 21... Ne5 {[%clk 0:07:53.4]} 22. Qe2 {[%clk 0:05:39.2]} 22... Qc5+ {[%clk 0:07:42.5]} 23. Kh1 {[%clk 0:05:31.1]} 23... Bxf3 {[%clk 0:07:31.8]} 24. gxf3 {[%clk 0:05:28]} 24... Nc4 {[%clk 0:07:24.2]} 25. b3 {[%clk 0:05:17.1]} 25... Ne3 {[%clk 0:07:20.5]} 26. Rf2 {[%clk 0:05:08.3]} 26... d5 {[%clk 0:07:08.4]} 27. Qd2 {[%clk 0:04:56.4]} 27... b4 {[%clk 0:06:53.5]} 28. Re2 {[%clk 0:04:48.6]} 28... Nf5 {[%clk 0:06:39.4]} 29. Kg2 {[%clk 0:04:44.2]} 29... Nd4 {[%clk 0:06:36.6]} 30. Qe3 {[%clk 0:04:34.5]} 30... Ra5 {[%clk 0:06:27.7]} 31. Rd2 {[%clk 0:02:57]} 31... Nxc2 {[%clk 0:05:58.1]} 32. Qxc5 {[%clk 0:02:52.1]} 32... Rxc5 {[%clk 0:05:55.3]} 33. Rc1 {[%clk 0:02:50.1]} 33... Ne3+ {[%clk 0:05:42.3]} 0-1

[Event "Live Chess"]
[Site "Chess.com"]
[Date "2010.12.31"]
[Round "-"]
[White "Nicatous"]
[Black "hipposcottimus"]
[Result "0-1"]
[CurrentPosition "r2q1rk1/5ppp/pn2p2B/2bp4/1p4n1/5N2/PPP3PP/1NKRR3 w - -"]
[Timezone "UTC"]
[ECO "D00"]
[ECOUrl "https://www.chess.com/openings/Queens-Pawn-Opening-1...d5-2.e3-c5"]
[UTCDate "2010.12.31"]
[UTCTime "00:24:53"]
[WhiteElo "930"]
[BlackElo "1384"]
[TimeControl "420"]
[Termination "hipposcottimus won by resignation"]
[StartTime "00:24:53"]
[EndDate "2010.12.31"]
[EndTime "00:30:21"]
[Link "https://www.chess.com/game/live/82690521"]

1. d4 {[%clk 0:07:00]} 1... d5 {[%clk 0:07:00]} 2. e3 {[%clk 0:06:56.4]} 2... c5 {[%clk 0:06:51.1]} 3. Bb5+ {[%clk 0:06:54]} 3... Bd7 {[%clk 0:06:43.7]} 4. Bxd7+ {[%clk 0:06:50.5]} 4... Nxd7 {[%clk 0:06:43.3]} 5. Nc3 {[%clk 0:06:39.6]} 5... cxd4 {[%clk 0:06:28.8]} 6. Qxd4 {[%clk 0:06:34.5]} 6... Ngf6 {[%clk 0:06:19.8]} 7. Nf3 {[%clk 0:06:26.1]} 7... e6 {[%clk 0:06:13.6]} 8. Bd2 {[%clk 0:05:55.3]} 8... Bc5 {[%clk 0:06:10]} 9. Qa4 {[%clk 0:05:43]} 9... O-O {[%clk 0:06:06.6]} 10. O-O-O {[%clk 0:05:37.6]} 10... a6 {[%clk 0:05:27.6]} 11. Rhe1 {[%clk 0:05:25.7]} 11... b5 {[%clk 0:05:24.4]} 12. Qh4 {[%clk 0:05:23.9]} 12... Nb6 {[%clk 0:05:04.3]} 13. e4 {[%clk 0:05:14.6]} 13... b4 {[%clk 0:04:44.2]} 14. Nb1 {[%clk 0:04:49.9]} 14... Nxe4 {[%clk 0:04:33.7]} 15. Qg4 {[%clk 0:04:23]} 15... Nxf2 {[%clk 0:04:28.7]} 16. Bh6 {[%clk 0:04:15.3]} 16... Nxg4 {[%clk 0:04:25.1]} 0-1

[Event "Live Chess"]
[Site "Chess.com"]
[Date "2010.12.30"]
[Round "-"]
[White "hipposcottimus"]
[Black "tijean11"]
[Result "1-0"]
[CurrentPosition "1rbR4/p1p1k1pp/1p6/2bBr1B1/4Q3/2N5/PPP3PP/R6K b - -"]
[Timezone "UTC"]
[ECO "C42"]
[ECOUrl "https://www.chess.com/openings/Petrovs-Defense-Urusov-Gambit"]
[UTCDate "2010.12.30"]
[UTCTime "23:56:28"]
[WhiteElo "1383"]
[BlackElo "1019"]
[TimeControl "600"]
[Termination "hipposcottimus won by checkmate"]
[StartTime "23:56:28"]
[EndDate "2010.12.31"]
[EndTime "00:03:10"]
[Link "https://www.chess.com/game/live/82683921"]

1. e4 {[%clk 0:10:00]} 1... e5 {[%clk 0:10:00]} 2. Nf3 {[%clk 0:09:57.4]} 2... Nf6 {[%clk 0:09:53.5]} 3. Bc4 {[%clk 0:09:51.9]} 3... d6 {[%clk 0:09:35.3]} 4. Nc3 {[%clk 0:09:44.4]} 4... Nc6 {[%clk 0:09:20.9]} 5. d4 {[%clk 0:09:39.6]} 5... exd4 {[%clk 0:09:16.9]} 6. Nxd4 {[%clk 0:09:24.1]} 6... Nxd4 {[%clk 0:09:11.9]} 7. Qxd4 {[%clk 0:09:22.9]} 7... Be7 {[%clk 0:08:49.7]} 8. O-O {[%clk 0:09:13.5]} 8... O-O {[%clk 0:08:41.2]} 9. f4 {[%clk 0:09:04.3]} 9... b6 {[%clk 0:08:09.8]} 10. e5 {[%clk 0:08:55]} 10... Nd7 {[%clk 0:07:05.9]} 11. Bd5 {[%clk 0:08:38.1]} 11... Rb8 {[%clk 0:06:57.5]} 12. Qe4 {[%clk 0:08:31.4]} 12... dxe5 {[%clk 0:06:52.4]} 13. fxe5 {[%clk 0:08:23.5]} 13... Bc5+ {[%clk 0:06:46.1]} 14. Kh1 {[%clk 0:08:17.8]} 14... Re8 {[%clk 0:06:29.9]} 15. Rxf7 {[%clk 0:08:01.7]} 15... Rxe5 {[%clk 0:06:15.5]} 16. Rxd7+ {[%clk 0:07:48.4]} 16... Kf8 {[%clk 0:06:00.4]} 17. Rxd8+ {[%clk 0:07:44.2]} 17... Ke7 {[%clk 0:05:51.8]} 18. Bg5# {[%clk 0:07:35.9]} 1-0

[Event "Live Chess"]
[Site "Chess.com"]
[Date "2010.12.30"]
[Round "-"]
[White "hipposcottimus"]
[Black "av04"]
[Result "1-0"]
[CurrentPosition "4rk2/2p3Rp/p1p5/P7/8/2BP1R2/1Pb3PP/6K1 b - -"]
[Timezone "UTC"]
[ECO "C57"]
[ECOUrl "https://www.chess.com/openings/Italian-Game-Fried-Liver-Attack-6...Kxf7-7.Qf3"]
[UTCDate "2010.12.30"]
[UTCTime "23:44:39"]
[WhiteElo "1381"]
[BlackElo "1288"]
[TimeControl "180+3"]
[Termination "hipposcottimus won by checkmate"]
[StartTime "23:44:39"]
[EndDate "2010.12.30"]
[EndTime "23:51:15"]
[Link "https://www.chess.com/game/live/82681099"]

1. e4 {[%clk 0:03:00]} 1... e5 {[%clk 0:03:00]} 2. Nf3 {[%clk 0:02:53.7]} 2... Nc6 {[%clk 0:02:58.6]} 3. Bc4 {[%clk 0:02:55.5]} 3... Nf6 {[%clk 0:02:42.6]} 4. Ng5 {[%clk 0:02:55.3]} 4... d5 {[%clk 0:02:44]} 5. exd5 {[%clk 0:02:53.7]} 5... Nxd5 {[%clk 0:02:45.2]} 6. Nxf7 {[%clk 0:02:53]} 6... Kxf7 {[%clk 0:02:46]} 7. Qf3+ {[%clk 0:02:53.4]} 7... Ke8 {[%clk 0:02:43.5]} 8. Bxd5 {[%clk 0:02:53.3]} 8... Qf6 {[%clk 0:02:44.1]} 9. Bxc6+ {[%clk 0:02:40.4]} 9... bxc6 {[%clk 0:02:44.1]} 10. Qc3 {[%clk 0:02:27]} 10... e4 {[%clk 0:02:33.8]} 11. O-O {[%clk 0:02:24.9]} 11... Qxc3 {[%clk 0:02:34.8]} 12. Nxc3 {[%clk 0:02:26.3]} 12... Bf5 {[%clk 0:02:33.2]} 13. f3 {[%clk 0:02:23.1]} 13... exf3 {[%clk 0:02:31.7]} 14. Rxf3 {[%clk 0:02:24.2]} 14... Bxc2 {[%clk 0:02:33.6]} 15. d3 {[%clk 0:02:25.6]} 15... Bb4 {[%clk 0:02:24.4]} 16. a4 {[%clk 0:02:12]} 16... Rf8 {[%clk 0:02:19.7]} 17. Re3+ {[%clk 0:02:10.3]} 17... Kf7 {[%clk 0:02:18.1]} 18. Bd2 {[%clk 0:01:55.1]} 18... Rae8 {[%clk 0:02:01.5]} 19. Rf3+ {[%clk 0:01:52.5]} 19... Kg8 {[%clk 0:02:02.7]} 20. Rg3 {[%clk 0:01:53.4]} 20... Bxc3 {[%clk 0:01:57.7]} 21. Bxc3 {[%clk 0:01:51.9]} 21... Rf7 {[%clk 0:01:46.8]} 22. a5 {[%clk 0:01:28.5]} 22... Rfe7 {[%clk 0:01:35.1]} 23. Bd4 {[%clk 0:01:22.7]} 23... a6 {[%clk 0:01:31]} 24. Bc3 {[%clk 0:01:10]} 24... Re3 {[%clk 0:01:23.7]} 25. Rxg7+ {[%clk 0:01:07]} 25... Kf8 {[%clk 0:01:16.3]} 26. Rf1+ {[%clk 0:01:06.7]} 26... Rf3 {[%clk 0:01:09.6]} 27. Rxf3# {[%clk 0:01:06.9]} 1-0

[Event "Live Chess"]
[Site "Chess.com"]
[Date "2010.12.30"]
[Round "-"]
[White "hipposcottimus"]
[Black "dalis"]
[Result "0-1"]
[CurrentPosition "1k2r3/1Pp2pbp/8/8/1R2Br2/8/P6P/7K w - -"]
[Timezone "UTC"]
[ECO "C01"]
[ECOUrl "https://www.chess.com/openings/French-Defense-Exchange-Variation-3...exd5-4.Nf3-Nf6-5.Bg5"]
[UTCDate "2010.12.30"]
[UTCTime "23:27:22"]
[WhiteElo "1375"]
[BlackElo "1379"]
[TimeControl "600"]
[Termination "dalis won on time"]
[StartTime "23:27:22"]
[EndDate "2010.12.30"]
[EndTime "23:43:19"]
[Link "https://www.chess.com/game/live/82676655"]

1. e4 {[%clk 0:10:00]} 1... e6 {[%clk 0:10:00]} 2. d4 {[%clk 0:09:58.3]} 2... d5 {[%clk 0:09:32.3]} 3. exd5 {[%clk 0:09:50.5]} 3... exd5 {[%clk 0:09:20.3]} 4. Nf3 {[%clk 0:09:47.7]} 4... Nf6 {[%clk 0:08:56.6]} 5. Bg5 {[%clk 0:09:37.6]} 5... Nc6 {[%clk 0:08:34]} 6. c4 {[%clk 0:09:26.4]} 6... Bb4+ {[%clk 0:08:24.1]} 7. Nc3 {[%clk 0:09:23.4]} 7... Qe7+ {[%clk 0:08:14.3]} 8. Be2 {[%clk 0:09:20.9]} 8... dxc4 {[%clk 0:08:06.5]} 9. O-O {[%clk 0:09:15.9]} 9... Be6 {[%clk 0:07:57]} 10. Bxf6 {[%clk 0:09:06]} 10... Qxf6 {[%clk 0:07:48.8]} 11. d5 {[%clk 0:09:05.3]} 11... O-O-O {[%clk 0:07:35.3]} 12. Qa4 {[%clk 0:08:31.9]} 12... Bxc3 {[%clk 0:07:26]} 13. dxc6 {[%clk 0:08:17.4]} 13... Bxb2 {[%clk 0:07:16.4]} 14. cxb7+ {[%clk 0:08:12.2]} 14... Kb8 {[%clk 0:07:07.9]} 15. Rab1 {[%clk 0:08:00]} 15... c3 {[%clk 0:06:59.6]} 16. Bd1 {[%clk 0:07:21.5]} 16... Bd5 {[%clk 0:06:50.4]} 17. Nd4 {[%clk 0:07:05.3]} 17... Bxg2 {[%clk 0:06:39.3]} 18. Nb5 {[%clk 0:06:25.6]} 18... a6 {[%clk 0:06:06.2]} 19. Kxg2 {[%clk 0:05:30]} 19... Qg5+ {[%clk 0:05:51.5]} 20. Kh1 {[%clk 0:05:21.2]} 20... Qxb5 {[%clk 0:05:40.6]} 21. Qxb5 {[%clk 0:04:37.7]} 21... axb5 {[%clk 0:05:31.1]} 22. Rg1 {[%clk 0:04:19.7]} 22... Rd2 {[%clk 0:05:22]} 23. Rxg7 {[%clk 0:03:43.7]} 23... c2 {[%clk 0:04:32.9]} 24. Bxc2 {[%clk 0:03:18.9]} 24... Bxg7 {[%clk 0:04:23.5]} 25. Be4 {[%clk 0:00:56.5]} 25... Rxf2 {[%clk 0:04:11.4]} 26. Rxb5 {[%clk 0:00:51.6]} 26... Re8 {[%clk 0:03:56.8]} 27. Rb4 {[%clk 0:00:29.4]} 27... Rf4 {[%clk 0:03:47.4]} 0-1

[Event "Live Chess"]
[Site "Chess.com"]
[Date "2010.12.30"]
[Round "-"]
[White "dalis"]
[Black "hipposcottimus"]
[Result "1-0"]
[CurrentPosition "r2rk3/2N1bppp/p7/2p1P3/6n1/8/PPP2P1P/R1B2RK1 b - -"]
[Timezone "UTC"]
[ECO "C62"]
[ECOUrl "https://www.chess.com/openings/Ruy-Lopez-Opening-Old-Steinitz-Defense-4.d4"]
[UTCDate "2010.12.30"]
[UTCTime "23:15:48"]
[WhiteElo "1379"]
[BlackElo "1375"]
[TimeControl "600"]
[Termination "dalis won by resignation"]
[StartTime "23:15:48"]
[EndDate "2010.12.30"]
[EndTime "23:24:34"]
[Link "https://www.chess.com/game/live/82673800"]

1. e4 {[%clk 0:10:00]} 1... e5 {[%clk 0:10:00]} 2. Nf3 {[%clk 0:09:51.7]} 2... Nc6 {[%clk 0:09:56.8]} 3. Bb5 {[%clk 0:09:39.4]} 3... d6 {[%clk 0:09:51.2]} 4. d4 {[%clk 0:09:30.1]} 4... a6 {[%clk 0:09:46.5]} 5. Bxc6+ {[%clk 0:08:46.7]} 5... bxc6 {[%clk 0:09:43]} 6. dxe5 {[%clk 0:08:17.9]} 6... Bg4 {[%clk 0:09:40.4]} 7. Qd4 {[%clk 0:07:53.3]} 7... Bxf3 {[%clk 0:09:36.2]} 8. gxf3 {[%clk 0:07:31.5]} 8... c5 {[%clk 0:09:33.9]} 9. Qa4+ {[%clk 0:07:06.7]} 9... Qd7 {[%clk 0:09:24.8]} 10. Qxd7+ {[%clk 0:06:47.7]} 10... Kxd7 {[%clk 0:09:24.4]} 11. exd6 {[%clk 0:06:30]} 11... cxd6 {[%clk 0:09:19.8]} 12. O-O {[%clk 0:06:09.5]} 12... Be7 {[%clk 0:09:04.9]} 13. Nc3 {[%clk 0:05:49.5]} 13... Nf6 {[%clk 0:08:52.5]} 14. f4 {[%clk 0:05:09.2]} 14... Rhd8 {[%clk 0:08:03]} 15. e5 {[%clk 0:04:50]} 15... dxe5 {[%clk 0:07:57.1]} 16. fxe5 {[%clk 0:04:27.5]} 16... Ng4 {[%clk 0:07:54.8]} 17. Nd5 {[%clk 0:04:08.8]} 17... Ke8 {[%clk 0:07:40.3]} 18. Nc7+ {[%clk 0:03:42.6]} 1-0

[Event "Live Chess"]
[Site "Chess.com"]
[Date "2010.12.30"]
[Round "-"]
[White "hipposcottimus"]
[Black "omar09"]
[Result "1-0"]
[CurrentPosition "1q2r2k/4P1p1/5p1p/p7/2Q5/P1P5/4R1PP/4R1K1 b - -"]
[Timezone "UTC"]
[ECO "C41"]
[ECOUrl "https://www.chess.com/openings/Philidor-Defense-3.Bc4"]
[UTCDate "2010.12.30"]
[UTCTime "22:57:05"]
[WhiteElo "1375"]
[BlackElo "1287"]
[TimeControl "120+12"]
[Termination "hipposcottimus won by resignation"]
[StartTime "22:57:05"]
[EndDate "2010.12.30"]
[EndTime "23:09:05"]
[Link "https://www.chess.com/game/live/82669218"]

1. e4 {[%clk 0:02:00]} 1... e5 {[%clk 0:02:00]} 2. Nf3 {[%clk 0:02:11]} 2... d6 {[%clk 0:02:08.6]} 3. Bc4 {[%clk 0:02:22.5]} 3... h6 {[%clk 0:02:17.7]} 4. d4 {[%clk 0:02:34.1]} 4... exd4 {[%clk 0:02:27.8]} 5. Nxd4 {[%clk 0:02:38.9]} 5... Bd7 {[%clk 0:02:38.4]} 6. Nc3 {[%clk 0:02:48.9]} 6... Nc6 {[%clk 0:02:45.3]} 7. O-O {[%clk 0:02:57.3]} 7... Nxd4 {[%clk 0:02:54.4]} 8. Qxd4 {[%clk 0:03:08.6]} 8... Nf6 {[%clk 0:02:59.4]} 9. f4 {[%clk 0:03:19.1]} 9... c5 {[%clk 0:03:07.2]} 10. Qe3 {[%clk 0:03:23.6]} 10... Be7 {[%clk 0:03:17.5]} 11. e5 {[%clk 0:03:33.1]} 11... dxe5 {[%clk 0:03:10.3]} 12. fxe5 {[%clk 0:03:41.6]} 12... Nh7 {[%clk 0:03:06.1]} 13. Bd3 {[%clk 0:03:46.1]} 13... Bg5 {[%clk 0:02:56]} 14. Qf3 {[%clk 0:03:52.6]} 14... O-O {[%clk 0:02:57]} 15. Bxh7+ {[%clk 0:03:59.3]} 15... Kxh7 {[%clk 0:03:06.6]} 16. Bxg5 {[%clk 0:04:09.9]} 16... Qxg5 {[%clk 0:03:12.8]} 17. Qxb7 {[%clk 0:04:20.8]} 17... Bh3 {[%clk 0:03:10.4]} 18. Rf2 {[%clk 0:04:28]} 18... Be6 {[%clk 0:03:02.5]} 19. Raf1 {[%clk 0:04:36]} 19... Kg8 {[%clk 0:03:00.4]} 20. Nd5 {[%clk 0:04:36.3]} 20... Bxd5 {[%clk 0:02:58]} 21. Qxd5 {[%clk 0:04:45.4]} 21... Qe7 {[%clk 0:02:43]} 22. a3 {[%clk 0:04:15.2]} 22... Rad8 {[%clk 0:02:45.4]} 23. Qe4 {[%clk 0:04:19.3]} 23... f6 {[%clk 0:02:43.1]} 24. Qc4+ {[%clk 0:04:02.1]} 24... Kh8 {[%clk 0:02:49.6]} 25. e6 {[%clk 0:04:06.4]} 25... Rfe8 {[%clk 0:02:48.1]} 26. Re2 {[%clk 0:04:08.4]} 26... Qc7 {[%clk 0:02:47.8]} 27. Rfe1 {[%clk 0:04:04.8]} 27... a5 {[%clk 0:02:31.8]} 28. e7 {[%clk 0:04:13.3]} 28... Rd7 {[%clk 0:02:36.7]} 29. Qf7 {[%clk 0:04:20.7]} 29... Qb8 {[%clk 0:02:32.4]} 30. b3 {[%clk 0:03:20.4]} 30... Rc7 {[%clk 0:02:19.9]} 31. c3 {[%clk 0:02:43.8]} 31... c4 {[%clk 0:02:13.8]} 32. bxc4 {[%clk 0:02:48.5]} 32... Rxc4 {[%clk 0:02:19.5]} 33. Qxc4 {[%clk 0:02:57.4]} 1-0